bitfinex/quotes_SOLUSD_20260114
["timestamp","ask_amount","ask_price","bid_price","bid_amount"]
[1768428819830,9.40984059,146.71,146.66,3.5529101]
[1768428819831,0.55825448,146.68,146.66,3.5529101]
[1768428820153,2.49455861,146.69,146.66,4.26785349]
[1768428821355,14.91455861,146.7,146.66,4.26785349]
[1768428821555,9.31138675,146.7,146.66,4.26785349]
[1768428821754,21.73138675,146.7,146.66,4.26785349]
[1768428821959,22.26891863,146.7,146.67,0.71494339]
[1768428822248,19.77436002,146.7,146.67,0.71494339]
[1768428822629,2.49455861,146.71,146.67,0.71494339]
[1768428822630,9.8484675,146.71,146.67,0.71494339]
[1768428822834,19.77390889,146.71,146.67,0.71494339]
[1768428824961,19.20637701,146.71,146.68,0.71494339]
[1768428825131,12.519,146.71,146.68,0.71494339]
[1768428825335,15.01355861,146.71,146.68,0.71494339]
[1768428825750,2.49455861,146.7,146.68,0.71494339]
[1768428825947,3.02770517,146.7,146.66,4.26785349]
[1768428826757,0.10334146,146.69,146.66,4.26785349]
[1768428828150,3.03209049,146.7,146.66,4.26785349]
[1768428829162,3.03209049,146.7,146.66,3.5529101]
[1768428829163,0.53314656,146.68,146.66,3.5529101]
[1768428829344,0.50314656,146.68,146.66,3.5529101]
[1768428829552,14.91455861,146.7,146.67,0.71494339]
[1768428831267,22.23875073,146.7,146.67,0.71494339]
[1768428834070,15.42209049,146.7,146.67,0.71494339]
[1768428836064,15.42209049,146.7,146.66,4.25663748]
[1768428836251,15.42209049,146.7,146.67,0.70372738]
[1768428837377,12.92753188,146.7,146.67,0.70372738]
[1768428837673,15.42209049,146.7,146.67,0.70372738]
[1768428840392,2.49455861,146.69,146.67,0.70372738]
[1768428840707,0.10304446,146.67,146.64,0.90372738]
[1768428841005,2.49455861,146.66,146.64,0.2]
[1768428841702,12.42,146.67,146.64,0.90372738]
[1768428841908,14.91455861,146.67,146.64,0.2]
[1768428842087,2.49455861,146.66,146.64,0.2]
[1768428843683,2.59355861,146.66,146.64,0.2]
[1768428846393,0.099,146.66,146.64,0.2]
[1768428847189,0.47374656,146.65,146.64,0.2]
[1768428847391,2.97209049,146.66,146.64,0.2]
[1768428847601,0.099,146.65,146.64,0.2]
[1768428847801,2.59355861,146.65,146.63,0.1]
[1768428848010,0.47753188,146.66,146.63,0.80372738]
[1768428848297,2.97209049,146.66,146.63,0.80372738]
[1768428851602,2.49455861,146.66,146.63,0.80372738]
[1768428851804,2.59355861,146.66,146.63,0.80372738]
[1768428853023,19.23802723,146.67,146.63,0.80372738]
[1768428853024,14.91455861,146.67,146.64,0.70372738]
[1768428853331,15.01355861,146.67,146.64,0.70372738]
[1768428859410,0.099,146.67,146.64,0.70372738]
[1768428859734,16.4205286,146.67,146.64,0.70372738]
[1768428862331,17.04211444,146.7,146.64,0.70372738]
[1768428862541,16.3215286,146.69,146.65,0.68678716]
[1768428862833,16.4205286,146.69,146.65,0.68678716]
[1768428865832,12.519,146.69,146.65,0.68678716]
[1768428866339,12.519,146.69,146.66,0.68678716]
[1768428871230,4.00427606,146.67,146.64,0.68678716]
[1768428871433,3.9015286,146.66,146.64,0.68678716]
[1768428871606,3.9015286,146.66,146.63,0.1]
[1768428871607,0.10642035,146.64,146.63,0.1]
[1768428871809,3.9015286,146.64,146.62,0.1]
[1768428872206,3.76382435,146.64,146.62,0.1]
[1768428872634,3.9015286,146.65,146.62,0.78678716]
[1768428872838,12.42,146.65,146.62,0.78678716]
[1768428873221,12.38999997,146.65,146.62,0.78678716]
[1768428874112,16.29152857,146.65,146.62,0.78678716]
[1768428875536,12.38999997,146.65,146.62,0.78678716]
[1768428875732,12.42,146.65,146.63,0.68678716]
[1768428876439,12.79111153,146.67,146.63,0.68678716]
[1768428877016,12.79111153,146.67,146.64,0.68678716]
[1768428877017,0.37111153,146.67,146.64,0.68678716]
[1768428877224,19.23772087,146.68,146.64,0.68678716]
[1768428877543,23.23824947,146.68,146.64,0.68678716]
[1768428892457,4.26725205,146.65,146.62,0.1]
[1768428892639,3.9015286,146.65,146.62,0.82284181]
[1768428892958,12.42,146.65,146.62,0.82284181]
[1768428897961,12.78839041,146.65,146.62,0.82284181]
[1768428898559,0.36839041,146.65,146.62,0.82284181]
[1768428899745,16.69264013,146.66,146.62,0.82284181]
[1768428902870,3.9015286,146.65,146.62,0.82284181]
[1768428903070,23.51135888,146.66,146.62,0.82284181]
[1768428903242,5.9565132,146.69,146.68,4.27747722]
[1768428903564,0.36572345,146.69,146.68,3.55463541]
[1768428908549,0.33572345,146.69,146.66,0.72284181]
[1768428909970,3.9015286,146.68,146.64,0.72284181]
[1768428910154,6.81728228,146.69,146.63,0.72284181]
[1768428910155,3.9015286,146.66,146.63,0.72284181]
[1768428910354,3.87152858,146.66,146.63,0.72284181]
[1768428910976,3.97052858,146.66,146.63,0.72284181]
[1768428911480,0.099,146.66,146.63,0.72284181]
[1768428914475,0.06899997,146.66,146.63,0.72284181]
[1768428915066,0.03899995,146.66,146.63,0.72284181]
[1768428918975,23.13965102,146.67,146.63,0.72284181]
[1768428918976,22.82318743,146.67,146.63,0.72284181]
[1768428919352,21.41867843,146.67,146.63,0.72284181]
[1768428920977,21.66078996,146.67,146.63,0.72284181]
[1768428922680,0.099,146.66,146.63,0.72284181]
[1768428923675,12.42,146.66,146.63,0.72284181]
[1768428924180,9.22082813,146.66,146.64,0.72368479]
[1768428924376,12.66211153,146.67,146.64,0.72368479]
[1768428925280,0.24211153,146.67,146.64,0.72368479]
[1768428925456,12.66211153,146.67,146.64,0.72368479]
[1768428925756,12.42,146.67,146.64,0.72368479]
[1768428925958,12.519,146.67,146.64,0.72368479]
[1768428927880,9.55640296,146.69,146.64,0.72368479]
[1768428928176,9.55640296,146.69,146.65,0.72368479]
[1768428928177,19.47938336,146.69,146.65,0.72368479]
[1768428929278,2.73913113,146.7,146.65,0.72368479]
[1768428929483,12.66211153,146.7,146.65,0.72368479]
[1768428929775,7.05791611,146.72,146.66,0.72368479]
[1768428929979,0.24211153,146.72,146.67,0.72368479]
[1768428930167,12.519,146.72,146.68,0.72368479]
[1768428930483,12.42,146.72,146.68,0.72368479]
[1768428930652,19.47749161,146.73,146.68,0.72368479]
[1768428930853,21.97451121,146.73,146.68,0.72368479]
[1768428932080,2.5974364,146.7,146.67,0.72368479]
[1768428933659,0.10180541,146.68,146.65,0.72368479]
[1768428933861,12.42,146.7,146.6,81.46438518]
[1768428934091,2.4970196,146.65,146.62,0.82368479]
[1768428934283,2.4970196,146.66,146.62,0.82368479]
[1768428934483,19.23839121,146.67,146.62,0.82368479]
[1768428934788,12.42,146.67,146.62,7.64389827]
[1768428934986,21.73509678,146.67,146.63,0.72368479]
[1768428936292,19.23807718,146.67,146.63,0.72368479]
[1768428936490,21.73509678,146.67,146.63,0.72368479]
[1768428937190,19.23807718,146.67,146.63,0.72368479]
[1768428937371,21.83409678,146.67,146.63,0.72368479]
[1768428937973,19.33707718,146.67,146.63,0.72368479]
[1768428938169,21.83409678,146.67,146.63,0.72368479]
[1768428939673,2.708,146.66,146.63,0.72368479]
[1768428940069,2.4970196,146.65,146.63,0.72368479]
[1768428940590,19.4501887,146.67,146.63,0.72368479]
[1768428940591,2.4970196,146.66,146.63,0.72368479]
[1768428941088,19.4501887,146.67,146.63,0.72368479]
[1768428941391,21.73509678,146.67,146.63,0.72368479]
[1768428941592,2.4970196,146.66,146.63,0.72368479]
[1768428941786,2.4670196,146.66,146.64,0.72368479]
[1768428942482,0.2098718,146.64,146.62,0.1]
[1768428942686,2.4970196,146.64,146.62,0.1]
[1768428942996,2.4970196,146.64,146.62,0.82368479]
[1768428943292,2.46701953,146.64,146.62,0.82368479]
[1768428943473,2.4970196,146.65,146.62,0.82368479]
[1768428943680,9.31558545,146.66,146.62,0.82368479]
[1768428943878,9.28558545,146.66,146.63,0.72368479]
[1768428944084,6.78856585,146.66,146.63,0.72368479]
[1768428944887,9.49725003,146.67,146.63,0.72368479]
[1768428945094,9.31513853,146.67,146.63,0.72368479]
[1768428945794,9.49641891,146.67,146.63,0.72368479]
[1768428949201,6.99939931,146.67,146.63,0.72368479]
[1768428949400,2.4970196,146.66,146.63,0.72368479]
[1768428951104,2.4970196,146.65,146.63,0.72368479]
[1768428954407,9.41545935,146.66,146.63,0.72368479]
[1768428956812,9.31563655,146.66,146.63,0.72368479]
[1768428961410,2.4970196,146.65,146.63,0.72368479]
[1768428961612,2.5968424,146.64,146.61,0.72232286]
[1768428961790,2.4970196,146.63,146.61,0.72232286]
[1768428961991,0.0998228,146.64,146.61,0.72232286]
[1768428962197,2.4970196,146.63,146.61,0.72232286]
[1768428962399,0.17966744,146.61,146.58,0.2]
[1768428962709,2.4970196,146.59,146.57,0.82232286]
[1768428962892,2.4970196,146.59,146.56,0.1]
[1768428962893,9.3192694,146.58,146.56,0.1]
[1768428963293,2.75901353,146.59,146.56,0.1]
[1768428963595,2.4970196,146.6,146.56,0.1]
[1768428964016,22.44861878,146.61,146.56,0.1]
[1768428964920,22.44861878,146.61,146.57,0.72232286]
[1768428966920,2.4970196,146.6,146.57,0.72232286]
[1768428967120,19.95159918,146.61,146.57,0.72232286]
[1768428967121,22.44861878,146.61,146.57,0.72232286]
[1768428967427,0.6864682,146.59,146.56,0.1]
[1768428967596,3.1834878,146.59,146.56,0.1]
[1768428968014,3.1834878,146.59,146.56,0.82232286]
[1768428969496,0.6864682,146.59,146.56,0.82232286]
[1768428969796,10.00907952,146.6,146.56,0.82232286]
[1768428970719,3.18777542,146.6,146.56,0.82232286]
[1768428970900,15.62777542,146.6,146.56,0.82232286]
[1768428972007,19.95176009,146.61,146.56,0.82232286]
[1768428972319,2.4970196,146.6,146.56,0.82232286]
[1768428972520,2.75901353,146.6,146.56,0.82232286]
[1768428977342,0.26199393,146.6,146.57,0.72232286]
[1768428977824,2.75901353,146.6,146.57,0.72232286]
[1768428979327,4.16704795,146.6,146.57,0.72232286]
[1768428980603,0.26199393,146.6,146.57,0.72232286]
[1768428982607,4.16704795,146.6,146.57,0.72232286]
[1768428986336,3.90505402,146.6,146.57,0.72232286]
[1768428986520,23.83522952,146.61,146.57,0.72232286]
[1768428988939,6.62586017,146.64,146.58,0.70944744]
[1768428989137,4.18824271,146.65,146.6,0.70944744]
[1768428989327,0.66548539,146.64,146.61,0.70944744]
[1768428990226,4.57053941,146.64,146.61,0.70944744]
[1768428991645,0.66548539,146.64,146.61,0.70944744]
[1768428992423,4.57440099,146.65,146.61,0.70944744]
[1768428993034,11.39340919,146.65,146.61,0.70944744]
[1768428993650,0.66548539,146.63,146.6,0.70944744]
[1768428994546,4.57440099,146.64,146.61,0.70944744]
[1768428996250,0.66934697,146.64,146.61,0.70944744]
[1768428996544,0.66934697,146.64,146.58,0.70944744]
[1768428996750,0.28318869,146.62,146.58,0.70944744]
[1768428997652,0.28318869,146.62,146.59,0.70944744]
[1768428997853,0.66934697,146.63,146.59,0.70944744]
[1768428998056,4.57440099,146.63,146.59,0.70944744]
[1768428998554,0.66934697,146.63,146.59,0.70944744]
[1768429007150,0.66934697,146.63,146.6,0.70944744]
[1768429007652,13.10934697,146.65,146.61,0.70944744]
[1768429008435,19.92830843,146.65,146.61,0.70944744]
[1768429008647,0.28318869,146.64,146.61,0.70944744]
[1768429010837,0.66548539,146.63,146.6,0.65739172]
[1768429011852,0.66548539,146.63,146.6,7.47866197]
[1768429016751,4.58801937,146.64,146.61,0.65739172]
[1768429018043,4.58801937,146.64,146.59,6.82155607]
[1768429018044,0.67942676,146.62,146.58,10.7271818]
[1768429018361,7.50203367,146.65,146.59,3.90505402]
[1768429018563,11.40708769,146.65,146.59,3.90505402]
[1768429018867,0.32910647,146.64,146.59,3.90505402]
[1768429019557,0.32910647,146.64,146.6,6.82113044]
[1768429019948,0.32910647,146.64,146.61,0.65739172]
[1768429021849,0.32910647,146.66,146.62,0.65739172]
[1768429022054,0.32910647,146.66,146.63,0.65739172]
[1768429022965,19.2581728,146.67,146.63,0.65739172]
[1768429022966,0.68296535,146.67,146.64,0.65739172]
[1768429028760,12.77417914,146.68,146.64,0.65739172]
[1768429028967,0.68296535,146.69,146.65,0.65739172]
[1768429029272,0.67942676,146.67,146.62,3.90505402]
[1768429029466,0.33604316,146.64,146.58,0.65739172]
[1768429029664,4.24109718,146.64,146.6,0.65739172]
[1768429030772,0.67255944,146.63,146.6,0.65739172]
[1768429032586,4.58801937,146.65,146.61,0.65739172]
[1768429032765,0.32910647,146.64,146.61,0.65739172]
[1768429035292,11.40670591,146.66,146.61,0.65739172]
[1768429035474,0.32910647,146.65,146.61,0.65739172]
[1768429036590,0.68296535,146.67,146.63,0.65739172]
[1768429036771,12.44,146.66,146.63,0.65739172]
[1768429037299,0.32910647,146.66,146.63,0.65739172]
[1768429037473,0.68296535,146.65,146.6,10.72618127]
[1768429037667,0.68296535,146.65,146.59,78.55376261]
[1768429037668,4.58801937,146.66,146.61,10.72572019]
[1768429038172,0.68296535,146.66,146.61,10.72572019]
[1768429038475,4.58801937,146.66,146.61,10.72572019]
[1768429038687,0.68296535,146.65,146.61,10.72572019]
[1768429038995,0.68296535,146.64,146.6,6.82121176]
[1768429039296,0.68296535,146.63,146.58,3.90505402]
[1768429039492,0.68296535,146.63,146.59,0.65739172]
[1768429040073,0.68296535,146.63,146.59,7.47906016]
[1768429040676,0.68296535,146.63,146.59,0.65739172]
[1768429040899,0.68296535,146.63,146.59,7.47913368]
[1768429041516,0.68296535,146.63,146.59,0.65739172]
[1768429041672,0.71027188,146.62,146.59,0.65739172]
[1768429045902,0.71027188,146.66,146.62,0.67882998]
[1768429047198,0.68027189,146.66,146.62,0.67882998]
[1768429048307,0.6502719,146.66,146.62,0.67882998]
[1768429049082,0.6502719,146.66,146.62,3.17691116]
[1768429049288,0.62027191,146.66,146.62,3.17691116]
[1768429053088,0.59027192,146.66,146.62,3.17691116]
[1768429054299,0.59027192,146.66,146.62,0.67882998]
[1768429056516,0.56027193,146.66,146.62,0.67882998]
[1768429056812,0.53027194,146.66,146.62,0.67882998]
[1768429057016,0.53027194,146.66,146.61,9.99749836]
[1768429057192,0.53027194,146.66,146.61,7.49941718]
[1768429057795,0.53027194,146.66,146.62,0.67882998]
[1768429063022,0.50027195,146.66,146.62,0.67882998]
[1768429063416,6.8185933,146.66,146.62,0.67882998]
[1768429065024,0.71027188,146.65,146.62,0.67882998]
[1768429065219,0.68027189,146.65,146.62,0.67882998]
[1768429068430,0.71027188,146.66,146.62,0.67882998]
[1768429071324,7.52884696,146.66,146.62,0.67882998]
[1768429071729,0.70738141,146.63,146.6,0.65923581]
[1768429076429,6.81906474,146.65,146.6,0.65923581]
[1768429076729,0.70738141,146.64,146.61,0.65923581]
[1768429078028,0.70738141,146.63,146.61,0.65923581]
[1768429078229,0.70738141,146.64,146.61,0.65923581]
[1768429078635,0.67738142,146.64,146.61,0.65923581]
[1768429078931,0.64738143,146.64,146.61,0.65923581]
[1768429079322,7.46681565,146.64,146.61,0.65923581]
[1768429080738,6.81943422,146.64,146.6,0.65923581]
[1768429080941,0.65875247,146.62,146.59,4.21397951]
[1768429081126,3.20546259,146.63,146.6,0.65923581]
[1768429081441,0.70738141,146.63,146.59,4.21397951]
[1768429082233,0.70738141,146.63,146.6,0.65923581]
[1768429082918,7.52650272,146.65,146.6,0.65923581]
[1768429083122,15.59683365,146.65,146.6,0.65923581]
[1768429083330,0.70689512,146.64,146.6,0.65923581]
[1768429085941,0.67689513,146.64,146.61,0.65923581]
[1768429087649,3.17497631,146.64,146.61,0.65923581]
[1768429088244,0.6592339,146.63,146.6,0.65923581]
[1768429088447,0.62923391,146.63,146.6,0.65923581]
[1768429091048,0.62970876,146.61,146.57,4.20972233]
[1768429091234,0.62970876,146.61,146.58,0.65923581]
[1768429092030,0.70738141,146.62,146.58,0.65923581]
[1768429093753,7.52797952,146.62,146.58,0.65923581]
[1768429094256,0.59935249,146.61,146.58,0.65923581]
[1768429098240,0.59935249,146.61,146.57,3.55048652]
[1768429098241,0.70630112,146.6,146.57,3.55048652]
[1768429099246,0.70630112,146.6,146.56,7.58210734]
[1768429099748,3.2043823,146.6,146.57,0.65923581]
[1768429100851,3.09850316,146.59,146.56,0.79599285]
[1768429101353,0.60042198,146.59,146.56,0.79599285]
[1768429101554,3.09850316,146.59,146.56,0.79599285]
[1768429103235,0.60042198,146.59,146.56,0.79599285]
[1768429104447,4.59111279,146.6,146.56,0.79599285]
[1768429105863,4.59111279,146.6,146.57,0.66053964]
[1768429107966,11.41252556,146.6,146.57,0.66053964]
[1768429109170,4.59111279,146.6,146.57,0.66053964]
[1768429111870,0.68552323,146.6,146.57,0.66053964]
[1768429113573,0.65552324,146.6,146.57,0.66053964]
[1768429114261,0.62552325,146.6,146.57,0.66053964]
[1768429114670,0.59552326,146.6,146.57,0.66053964]
[1768429120984,12.44,146.61,146.57,0.66053964]
[1768429121169,19.94541001,146.63,146.58,0.66053964]
[1768429121677,0.53189212,146.62,146.58,0.66053964]
[1768429126480,9.5766312,146.64,146.61,0.66053964]
[1768429127684,0.68552323,146.64,146.61,0.66053964]
[1768429130684,7.50496805,146.64,146.61,0.66053964]
[1768429130884,11.41055761,146.64,146.61,0.66053964]
[1768429133996,7.50496805,146.64,146.61,0.66053964]
[1768429134174,11.41055761,146.64,146.61,0.66053964]
[1768429134812,7.50496805,146.64,146.61,0.66053964]
[1768429135298,11.41055761,146.64,146.61,0.66053964]
[1768429136292,7.50496805,146.64,146.61,0.66053964]
[1768429136464,11.41055761,146.64,146.61,0.66053964]
[1768429138004,3.90558956,146.63,146.61,0.66053964]
[1768429138393,0.68398692,146.61,146.58,0.69480254]
[1768429138576,3.90558956,146.61,146.58,0.69480254]
[1768429139078,10.72687196,146.6,146.56,0.79480254]
[1768429139282,10.69687196,146.6,146.56,0.79480254]
[1768429139474,3.90558956,146.59,146.56,0.79480254]
[1768429139675,3.87558956,146.59,146.56,0.79480254]
[1768429140697,10.69687196,146.6,146.56,0.79480254]
[1768429140889,3.90558956,146.59,146.56,0.79480254]
[1768429141290,10.72739801,146.59,146.56,0.79480254]
[1768429143085,6.82180845,146.59,146.56,0.1]
[1768429143283,4.50730106,146.58,146.53,0.1]
[1768429143798,4.50730106,146.58,146.53,4.00558956]
[1768429144000,4.50730106,146.58,146.53,6.92451432]
[1768429144783,0.59668438,146.56,146.53,0.1]
[1768429144988,7.4241062,146.58,146.53,0.1]
[1768429145189,3.90558956,146.57,146.54,0.69480254]
[1768429145382,11.32969576,146.58,146.54,0.69480254]
[1768429145796,0.6017115,146.6,146.57,0.69480254]
[1768429146704,7.42302888,146.6,146.56,0.69480254]
[1768429148415,3.90558956,146.61,146.59,0.69480254]
[1768429148416,6.82098217,146.61,146.59,0.69480254]
[1768429148703,6.82098217,146.61,146.58,0.69480254]
[1768429148911,7.42269367,146.61,146.58,0.69480254]
[1768429150205,6.91998217,146.61,146.58,0.69480254]
[1768429150882,6.82098217,146.61,146.58,0.69480254]
[1768429151408,6.91998217,146.61,146.58,0.69480254]
[1768429154686,0.59668438,146.6,146.55,0.69480254]
[1768429155087,0.59668438,146.6,146.56,0.69480254]
[1768429155607,11.32828323,146.61,146.56,0.69480254]
[1768429157107,6.92030435,146.6,146.56,0.69480254]
[1768429159012,6.92030435,146.6,146.57,0.69480254]
[1768429160714,0.099,146.6,146.57,0.69480254]
[1768429171746,7.42271921,146.61,146.57,0.69480254]
[1768429173517,7.42271921,146.61,146.58,0.66138979]
[1768429181337,9.92177752,146.61,146.58,0.66138979]
[1768429181844,7.42271921,146.61,146.58,0.66138979]
[1768429182646,9.92177752,146.61,146.58,0.66138979]
[1768429184546,7.42271921,146.61,146.58,0.66138979]
[1768429185049,9.92177752,146.61,146.58,0.66138979]
[1768429188551,7.42271921,146.61,146.58,0.66138979]
[1768429190755,0.6017115,146.64,146.59,0.68631882]
[1768429190944,2.49905831,146.65,146.6,0.68631882]
[1768429190945,0.099,146.65,146.6,0.68631882]
[1768429191258,0.59668438,146.66,146.62,0.68631882]
[1768429192134,0.59668438,146.66,146.63,0.68631882]
[1768429192333,7.41539795,146.66,146.63,0.62631882]
[1768429199653,25.87646565,146.67,146.63,0.62631882]
[1768429200246,28.37552396,146.67,146.63,0.62631882]
[1768429201648,13.43646565,146.67,146.63,0.62631882]
[1768429201848,25.87646565,146.67,146.63,0.62631882]
[1768429202048,0.099,146.66,146.63,0.62631882]
[1768429203066,6.81824095,146.67,146.64,0.68631882]
[1768429203273,105.59905831,146.69,146.66,0.68631882]
[1768429203274,116.2017115,146.69,146.66,0.68631882]
[1768429203453,13.1017115,146.69,146.66,3.1311972]
[1768429203653,12.539,146.69,146.66,2.49905831]
[1768429204249,12.44,146.69,146.65,2.49905831]
[1768429204452,0.71589143,146.71,146.67,2.49905831]
[1768429204651,23.85220359,146.74,146.63,23.86958943]
[1768429204652,13.15589143,146.72,146.68,2.49905831]
[1768429204850,19.9718757,146.72,146.68,2.49905831]
[1768429205251,0.099,146.71,146.67,2.49905831]
[1768429205462,7.53129075,146.73,146.69,3.18537713]
[1768429205968,7.53129075,146.73,146.69,3.12537713]
[1768429206663,7.53129075,146.73,146.69,0.62631882]
[1768429208368,7.53129075,146.73,146.7,0.68631882]
[1768429209174,0.1584,146.72,146.69,0.68631882]
[1768429210775,6.97423432,146.72,146.69,0.68631882]
[1768429211283,0.1584,146.72,146.69,0.68631882]
[1768429214964,6.81568367,146.73,146.71,0.68631882]
[1768429215178,19.95208576,146.74,146.71,0.62631882]
[1768429218161,0.2,146.75,146.73,0.68631882]
[1768429218484,0.2,146.75,146.72,3.18537713]
[1768429218485,0.41653176,146.75,146.72,3.18537713]
[1768429219282,0.41653176,146.75,146.72,0.68631882]
[1768429223963,7.23085184,146.75,146.72,0.68631882]
[1768429233968,0.41653176,146.75,146.72,0.68631882]
[1768429235091,0.2,146.75,146.74,0.71668711]
[1768429235384,0.2,146.76,146.75,0.65668712]
[1768429235597,0.8953537,146.79,146.74,3.89665367]
[1768429235799,13.3153537,146.79,146.74,3.89665367]
[1768429235970,13.3153537,146.79,146.75,6.81431005]
[1768429236380,0.69353234,146.78,146.75,6.81431005]
[1768429236886,137.73269772,146.8,146.76,0.71668711]
[1768429237088,0.099,146.79,146.76,0.65668711]
[1768429237390,0.099,146.79,146.75,6.81431005]
[1768429239291,0.099,146.79,146.75,7.53099716]
[1768429243194,0.099,146.79,146.76,0.71668711]
[1768429248792,0.6953537,146.78,146.75,0.71668711]
[1768429254278,11.39820832,146.79,146.75,0.71668711]
[1768429254482,0.68899196,146.78,146.75,0.71668711]
[1768429259211,0.68899196,146.77,146.73,13.109305]
[1768429259389,4.58564563,146.76,146.73,13.109305]
[1768429259588,0.68899196,146.75,146.73,0.689305]
[1768429260086,0.68899196,146.75,146.72,0.689305]
[1768429262612,11.39970378,146.76,146.72,0.689305]
[1768429262802,0.68899196,146.75,146.72,0.689305]
[1768429263991,0.68899196,146.73,146.7,12.42]
[1768429264314,0.68899196,146.73,146.7,13.109305]
[1768429264617,0.68899196,146.73,146.71,0.689305]
[1768429264801,0.68899196,146.74,146.71,0.689305]
[1768429265513,0.68899196,146.75,146.71,0.689305]
[1768429265713,0.68899196,146.75,146.72,0.689305]
[1768429267113,0.68899196,146.79,146.75,0.689305]
[1768429268009,4.58564563,146.76,146.73,13.109305]
[1768429268310,12.76896636,146.79,146.66,22.63885936]
[1768429268311,0.68899196,146.74,146.72,0.689305]
[1768429268511,4.55564564,146.74,146.7,13.109305]
[1768429268715,3.89665367,146.74,146.7,13.109305]
[1768429269215,10.71170754,146.74,146.7,13.109305]
[1768429269414,3.89665367,146.73,146.7,12.42]
[1768429269713,6.81505387,146.74,146.7,13.109305]
[1768429269714,10.71170754,146.74,146.7,13.109305]
[1768429270518,0.68899196,146.72,146.7,12.42]
[1768429270705,0.68899196,146.72,146.68,0.689305]
[1768429271594,10.71163017,146.74,146.69,0.689305]
[1768429271812,0.68899196,146.73,146.69,0.689305]
[1768429273417,0.68899196,146.72,146.69,0.689305]
[1768429274607,4.58564563,146.72,146.69,0.689305]
[1768429274809,0.68899196,146.71,146.68,0.689305]
[1768429275012,6.81585149,146.72,146.68,0.689305]
[1768429275211,10.71250516,146.72,146.68,0.689305]
[1768429275405,3.89665367,146.72,146.68,0.689305]
[1768429275610,10.71241141,146.72,146.68,0.689305]
[1768429275810,10.71241141,146.72,146.69,0.689305]
[1768429276728,17.03765177,146.74,146.69,0.689305]
[1768429277028,0.68899196,146.72,146.69,0.689305]
[1768429278326,4.58564563,146.72,146.69,0.689305]
[1768429279514,11.40144221,146.72,146.69,0.689305]
[1768429279714,11.37144221,146.72,146.69,0.689305]
[1768429281628,4.55564563,146.72,146.69,0.689305]
[1768429281937,0.69302332,146.67,146.64,3.53417026]
[1768429282108,4.58934348,146.65,146.62,0.65442567]
[1768429282435,4.58901661,146.63,146.6,13.27442567]
[1768429282649,3.89665367,146.62,146.6,13.27442567]
[1768429284231,3.89665367,146.62,146.6,0.85442567]
[1768429284436,4.55698,146.62,146.6,0.2]
[1768429285165,11.37742569,146.62,146.6,0.2]
[1768429285325,9.97950397,146.62,146.6,0.2]
[1768429285720,9.97950397,146.62,146.59,0.65442567]
[1768429285926,3.15937544,146.6,146.57,16.61083659]
[1768429286148,2.49873195,146.59,146.57,13.07442567]
[1768429286733,0.69172859,146.59,146.57,12.42]
[1768429286948,3.19046054,146.59,146.56,0.75442567]
[1768429287643,10.01256005,146.59,146.56,0.75442567]
[1768429288346,2.49873195,146.57,146.54,0.65442567]
[1768429290459,10.01328148,146.57,146.54,0.65442567]
[1768429290656,2.49873195,146.56,146.54,0.65442567]
[1768429291352,10.01328148,146.57,146.54,0.65442567]
[1768429291657,2.49873195,146.56,146.54,0.65442567]
[1768429292374,10.01328148,146.57,146.54,0.65442567]
[1768429292666,2.49873195,146.56,146.54,0.65442567]
[1768429293162,10.01328148,146.57,146.54,0.65442567]
[1768429295636,7.51359922,146.64,146.57,0.19064076]
[1768429295831,0.69417751,146.66,146.61,2.68937271]
[1768429296052,0.69417751,146.66,146.61,15.12937271]
[1768429296357,0.69417751,146.66,146.62,0.19064076]
[1768429296750,0.69417751,146.66,146.62,2.68937271]
[1768429297058,7.51290971,146.66,146.62,2.68937271]
[1768429297841,0.69417751,146.65,146.62,2.49873195]
[1768429298051,0.69417751,146.65,146.61,14.93873195]
[1768429298863,0.69417751,146.65,146.56,0.19064076]
[1768429298864,7.51323161,146.65,146.56,0.19064076]
[1768429299053,3.19290946,146.59,146.56,0.19064076]
[1768429299256,3.19290946,146.58,146.56,0.19064076]
[1768429299565,3.19290946,146.57,146.56,0.19064076]
[1768429299752,3.19290946,146.57,146.53,0.1]
[1768429301176,3.19290946,146.55,146.52,21.52988337]
[1768429305072,2.49873195,146.55,146.52,21.52988337]
[1768429305369,3.19290946,146.58,146.52,30.8535876]
[1768429305550,2.49873195,146.57,146.52,28.35485565]
[1768429306562,2.49873195,146.56,146.52,28.35485565]
[1768429307361,2.49873195,146.57,146.52,28.35485565]
[1768429308363,3.19290946,146.58,146.52,28.35485565]
[1768429309170,0.69417751,146.58,146.52,28.35485565]
[1768429309356,0.69417751,146.57,146.52,28.35485565]
[1768429309969,10.01513009,146.58,146.52,30.8535876]
[1768429310165,0.69417751,146.57,146.52,30.8535876]
[1768429310564,9.97709227,146.58,146.52,30.8535876]
[1768429310864,7.47836032,146.58,146.52,30.8535876]
[1768429311451,0.65613969,146.6,146.53,2.49873195]
[1768429311662,0.65613969,146.6,146.54,2.49873195]